bitfinex-derivatives/quotes_ETHF0:USTF0_20250904
["timestamp","ask_amount","ask_price","bid_price","bid_amount"]
[1756945274594,0.7155,4474.7,4474.6,0.4339]
[1756945274791,0.7155,4474.7,4474.6,0.3952]
[1756945276194,0.7155,4474.7,4474.6,0.1999]
[1756945276391,0.7155,4474.7,4474.6,0.3952]
[1756945276699,0.3127,4474.7,4474.6,0.555]
[1756945277686,0.3127,4474.9,4474.8,0.3952]
[1756945277886,0.7155,4474.9,4474.8,0.3952]
[1756945282293,0.1245,4475.5,4474.8,0.3952]
[1756945282494,0.1245,4476.0,4475.9,0.555]
[1756945282799,0.3127,4476.2,4476.1,0.3952]
[1756945282996,0.5115,4476.2,4476.1,0.3952]
[1756945283198,0.5115,4476.2,4476.1,3.54350333]
[1756945283397,0.3127,4476.2,4476.1,3.70330333]
[1756945284096,0.3127,4476.2,4476.1,3.54350333]
[1756945284396,0.3127,4476.2,4476.1,3.70330333]
[1756945284997,0.1245,4477.0,4476.1,3.70330333]
[1756945284998,0.5273,4476.5,4476.4,0.1999]
[1756945285497,0.84,4476.5,4476.4,0.3952]
[1756945285892,0.84,4476.5,4476.4,0.1999]
[1756945286395,0.84,4476.5,4476.4,0.3952]
[1756945286788,0.84,4476.5,4475.3,0.1999]
[1756945286789,0.1988,4475.4,4475.3,0.1999]
[1756945286989,0.7155,4475.4,4475.3,0.6282]
[1756945287696,0.4028,4475.4,4475.2,3.14830333]
[1756945287896,0.7155,4475.3,4475.2,3.58120333]
[1756945288394,0.7155,4475.3,4475.2,3.34820333]
[1756945288695,0.7155,4475.3,4475.2,3.54350333]
[1756945289094,0.1245,4475.5,4475.2,3.70330333]
[1756945289297,0.4372,4475.5,4475.4,0.3952]
[1756945289494,0.3127,4475.5,4475.4,0.555]
[1756945289689,0.1245,4476.0,4475.5,0.1598]
[1756945289896,0.636,4476.0,4475.9,0.3952]
[1756945290088,0.84,4476.0,4475.9,0.3952]
[1756945290896,0.4372,4476.0,4475.9,0.3952]
[1756945291098,0.3127,4476.4,4475.9,0.3952]
[1756945291294,0.1245,4476.5,4476.0,0.233]
[1756945291498,0.1245,4476.5,4476.3,0.1999]
[1756945291499,0.7155,4476.4,4476.3,0.1999]
[1756945291701,0.7155,4476.4,4476.3,3.34820333]
[1756945292501,0.7155,4476.4,4476.3,3.54350333]
[1756945293300,0.7155,4476.4,4476.3,3.34820333]
[1756945293501,0.7155,4476.4,4476.3,3.14830333]
[1756945294098,0.7155,4476.4,4476.3,3.34820333]
[1756945295898,0.7155,4476.4,4476.3,3.14830333]
[1756945297502,0.4028,4476.4,4475.1,0.1598]
[1756945297707,0.84,4475.5,4475.2,0.233]
[1756945298206,0.84,4475.5,4475.4,0.1999]
[1756945299603,0.4028,4475.2,4475.1,3.14830333]
[1756945299901,0.7155,4475.2,4475.1,3.38130333]
[1756945300101,0.7155,4475.2,4475.1,3.14830333]
[1756945300306,0.3127,4475.2,4475.1,3.54350333]
[1756945300501,0.3127,4475.2,4475.1,3.70330333]
[1756945300698,0.3127,4475.2,4475.1,3.93530333]
[1756945300899,0.5115,4475.2,4475.1,3.77550333]
[1756945301611,0.4372,4475.5,4475.1,3.77550333]
[1756945301910,0.4372,4475.5,4475.4,0.3952]
[1756945302209,0.636,4475.5,4475.4,0.6272]
[1756945303910,0.4372,4475.5,4475.4,0.6272]
[1756945304110,0.4372,4475.5,4475.4,0.7881]
[1756945304410,0.8243,4475.5,4475.4,0.232]
[1756945304616,0.8243,4475.5,4475.2,0.232]
[1756945304805,0.2845,4475.4,4475.2,0.232]
[1756945305010,0.6716,4475.3,4475.2,0.4249]
[1756945305204,0.6716,4475.3,4475.2,0.1929]
[1756945305408,0.6716,4475.3,4475.2,0.6335]
[1756945305713,0.472,4475.3,4475.2,0.6335]
[1756945306510,0.1245,4475.5,4475.2,0.7944]
[1756945306713,0.2845,4475.5,4475.4,0.5624]
[1756945307009,0.588,4475.5,4475.4,0.6335]
[1756945307213,0.7876,4475.5,4475.4,0.232]
[1756945307514,0.5031,4475.5,4475.1,3.14830333]
[1756945307716,0.5031,4475.5,4475.4,0.1929]
[1756945308214,0.7876,4475.5,4475.4,0.1929]
[1756945308406,0.2845,4475.4,4475.1,3.14830333]
[1756945308608,0.6716,4475.3,4475.2,0.232]
[1756945308914,0.6716,4475.3,4475.2,0.1929]
[1756945309100,0.6716,4475.3,4475.2,0.4249]
[1756945309303,0.6716,4475.3,4475.2,0.1929]
[1756945309508,0.6716,4475.3,4475.2,0.4249]
[1756945309715,0.6716,4475.3,4475.2,0.232]
[1756945311616,0.2845,4475.2,4475.1,3.14830333]
[1756945311816,0.6716,4475.2,4475.1,3.38030333]
[1756945312915,0.6716,4475.2,4475.1,3.14830333]
[1756945313818,0.6716,4475.2,4475.1,3.34120333]
[1756945314926,0.6716,4475.2,4475.1,3.54980333]
[1756945316015,0.6716,4475.2,4475.1,3.78180333]
[1756945316918,0.6716,4475.2,4474.8,0.1609]
[1756945316919,0.7876,4474.5,4474.4,0.4015]
[1756945317315,0.588,4474.0,4473.9,3.54980333]
[1756945317514,0.588,4474.0,4473.9,3.78180333]
[1756945320022,0.7876,4474.0,4473.9,3.78080333]
[1756945320416,0.7876,4473.5,4473.4,0.4239]
[1756945320614,0.7876,4473.5,4473.4,0.4015]
[1756945321722,0.3871,4473.4,4473.3,0.1929]
[1756945321922,0.6716,4473.4,4473.3,0.4015]
[1756945324914,0.4005,4474.0,4473.3,0.4015]
[1756945325224,0.116,4474.5,4473.9,3.71070333]
[1756945325425,0.588,4474.5,4474.4,3.23292018]
[1756945325617,0.588,4474.5,4474.4,3.46392018]
[1756945326227,0.4005,4474.5,4474.4,3.62482018]
[1756945326614,0.2845,4475.1,4474.4,3.46392018]
[1756945326822,0.2845,4475.1,4475.0,0.5624]
[1756945327019,0.472,4475.1,4475.0,0.6325]
[1756945328016,0.6716,4475.1,4475.0,0.6325]
[1756945328227,0.116,4475.5,4475.0,0.7934]
[1756945328418,0.472,4475.4,4475.3,0.4015]
[1756945328625,0.472,4475.4,4475.3,0.6325]
[1756945328820,0.2845,4476.2,4475.9,0.4015]
[1756945329017,0.16970613,4476.2,4476.1,0.6772]
[1756945329330,0.3035,4476.5,4476.4,0.4015]
[1756945329731,0.3035,4476.5,4476.4,3.23292018]
[1756945330219,0.3035,4476.5,4476.4,3.50862018]
[1756945330419,0.1875,4476.5,4476.4,3.50862018]
[1756945330720,0.116,4477.0,4476.4,3.74062018]
[1756945331123,0.116,4477.0,4476.4,3.46492018]
[1756945331316,0.588,4477.0,4476.9,3.50862018]
[1756945331923,0.7837,4477.0,4476.9,3.23292018]
[1756945332524,0.588,4477.0,4476.9,3.46492018]
[1756945333229,33.42782892,4478.6,4476.9,3.46492018]
[1756945333230,1.19794287,4478.7,4477.9,0.397]
[1756945333429,0.821,4478.0,4477.9,0.629]
[1756945333729,0.821,4478.0,4477.9,3.46042018]
[1756945333924,0.821,4478.0,4477.9,3.22842018]
[1756945334130,0.3952,4477.7,4477.6,0.233]
[1756945334324,0.1251,4479.0,4477.7,0.2759]
[1756945334533,0.1251,4479.0,4477.6,0.233]
[1756945334534,0.6959,4478.4,4477.6,0.233]
[1756945335033,0.5203,4477.5,4477.4,0.233]
[1756945335337,0.5203,4477.5,4477.0,2.83142018]
[1756945335338,0.821,4477.5,4477.3,0.233]
[1756945335534,0.6959,4477.4,4477.3,0.4217]
[1756945335920,0.6959,4477.4,4477.3,0.9059]
[1756945336121,0.5002,4477.4,4477.3,0.9059]
[1756945336326,0.3246,4478.0,4477.9,0.397]
[1756945336533,0.821,4478.0,4477.9,3.22842018]
[1756945337332,0.5002,4478.0,4477.9,3.50432018]
[1756945337527,0.5002,4478.8,4478.7,0.6729]
[1756945337828,0.6959,4478.8,4478.7,3.22842018]
[1756945338221,0.3007,4478.8,4478.7,3.50432018]
[1756945338427,0.6702,4478.9,4478.8,0.397]
[1756945338628,0.8659,4478.9,4478.8,0.1887]
[1756945339737,0.6702,4478.9,4478.8,0.6729]
[1756945339930,0.17,4478.9,4478.8,0.6729]
[1756945340129,0.17,4478.9,4478.8,0.9059]
[1756945340339,0.3007,4479.9,4479.3,3.50432018]
[1756945340532,0.6959,4479.4,4479.3,3.22842018]
[1756945341228,0.3581,4480.0,4479.4,0.2759]
[1756945341229,0.4258,4480.0,4479.4,0.2759]
[1756945341432,0.3952,4479.6,4479.5,0.4217]
[1756945341623,0.6959,4479.6,4479.5,0.4217]
[1756945342031,0.6959,4479.6,4479.5,0.1887]
[1756945342845,0.6959,4479.6,4479.5,0.63]
[1756945343726,0.1995,4479.9,4479.8,0.397]
[1756945344028,0.6959,4479.9,4479.8,3.22842018]
[1756945344632,0.6959,4479.9,4479.8,3.02012018]
[1756945345126,0.6959,4479.9,4479.8,2.83142018]
[1756945345733,0.6959,4479.9,4479.8,3.22842018]
[1756945346835,0.0625,4482.0,4480.0,0.1153]
[1756945347134,0.3952,4481.3,4481.2,3.32572018]
[1756945347332,32.166,4483.4,4481.2,3.22842018]
[1756945347525,0.3952,4481.8,4481.7,2.83142018]
[1756945347735,0.3952,4481.8,4481.7,3.13702018]
[1756945348039,0.3952,4481.8,4481.7,0.3056]
[1756945348232,0.3952,4481.8,4481.7,0.4943]
[1756945348537,0.3952,4481.8,4481.7,0.7026]
[1756945348738,0.1995,4481.8,4481.7,0.7026]
[1756945349035,32.166,4483.4,4481.6,2.83142018]
[1756945349036,0.2802,4482.9,4481.8,0.3056]
[1756945349238,0.3952,4482.7,4482.6,3.13702018]
[1756945349436,0.3952,4482.7,4482.6,3.32572018]
[1756945349637,0.3952,4482.7,4482.6,3.53402018]
[1756945350140,0.3952,4482.7,4482.6,3.32572018]
[1756945350342,0.6754,4482.7,4482.6,3.32572018]
[1756945350537,0.6754,4482.7,4482.1,0.5386]
[1756945350739,0.6754,4482.7,4482.1,0.3056]
[1756945350935,0.6754,4482.7,4482.1,0.5386]
[1756945351441,0.6754,4482.7,4482.2,0.3056]
[1756945351638,0.3952,4482.7,4482.6,0.4943]
[1756945352234,0.6754,4482.7,4482.6,0.3056]
[1756945352636,0.6754,4482.7,4482.0,2.94672018]
[1756945352838,0.1995,4482.4,4482.3,0.4943]
[1756945353037,0.2802,4483.2,4482.4,0.3056]
[1756945353240,0.2802,4483.6,4483.0,3.64932018]
[1756945353441,0.2802,4483.6,4483.0,3.17972018]
[1756945354340,0.2802,4483.6,4483.1,0.3056]
[1756945354545,0.1995,4482.7,4482.6,0.7026]
[1756945354845,0.2802,4483.8,4482.7,0.3056]
[1756945355347,0.50325001,4483.8,4482.7,0.3056]
[1756945355745,0.2802,4483.8,4482.7,0.3056]
[1756945355947,0.1995,4482.8,4482.7,0.7026]
[1756945356842,0.2802,4482.7,4482.0,0.1153]
[1756945357045,0.3952,4482.1,4482.0,0.6096]
[1756945357241,0.1995,4482.1,4482.0,0.8179]
[1756945357442,0.2802,4483.0,4482.1,0.3056]
[1756945357746,0.3952,4482.9,4482.8,0.4943]
[1756945357942,0.3952,4482.9,4482.5,0.1153]
[1756945358145,0.3952,4482.7,4482.6,0.3056]
[1756945358447,0.6754,4482.7,4482.6,0.3056]
[1756945359049,0.3952,4482.7,4482.6,0.4943]
[1756945359252,0.129,4483.4,4482.7,0.3056]
[1756945359451,0.52494226,4483.3,4482.7,0.3056]
[1756945359644,0.129,4483.4,4482.7,0.3056]
[1756945359842,0.5249302,4483.3,4482.7,0.3056]
[1756945360146,0.3952,4482.8,4482.7,0.7026]
[1756945361143,1.26044287,4484.0,4482.7,0.7026]
[1756945361144,1.19794287,4483.9,4482.7,0.397]
[1756945361345,1.03056866,4483.8,4482.8,0.3056]
[1756945361540,0.52536866,4483.7,4482.8,0.3056]
[1756945361740,0.52536866,4483.6,4482.8,0.3056]
[1756945361945,0.52536866,4483.5,4482.8,0.3056]
[1756945362152,0.52536866,4483.4,4482.8,0.3056]
[1756945362352,0.52536866,4483.3,4482.6,0.3073]
[1756945362653,0.52536866,4483.2,4482.6,0.3073]
[1756945362855,0.2802,4483.5,4482.5,0.1153]
[1756945362856,0.52536866,4483.1,4482.5,0.1153]
[1756945363050,0.92756866,4483.0,4482.9,0.5147]
[1756945363551,1.20776866,4483.0,4482.5,0.1153]
[1756945363856,0.2045,4482.7,4482.6,0.5147]
[1756945364154,0.2802,4482.6,4482.0,0.4226]
[1756945364454,0.4022,4482.1,4482.0,0.6319]
[1756945364646,0.52628273,4482.3,4482.2,0.4107]
[1756945364845,0.2802,4482.9,4482.3,0.3073]
[1756945365054,0.92842848,4482.8,4482.7,0.2074]
[1756945365252,0.92842848,4482.8,4482.7,0.5147]
[1756945367253,2.12637135,4482.8,4482.7,0.5147]
[1756945367555,2.12759151,4482.8,4482.7,0.5147]
[1756945367753,2.12759151,4482.8,4482.7,0.3073]
[1756945368052,1.20984864,4482.8,4482.1,0.3073]
[1756945368254,1.19512666,4482.6,4482.0,0.1172]
[1756945368454,0.92964864,4482.5,4482.4,0.5147]
[1756945369045,0.6824,4482.2,4482.1,0.3073]
[1756945369253,1.20984864,4482.2,4482.1,0.3073]
[1756945369556,0.92964864,4482.2,4482.1,0.718]
[1756945369854,0.73194864,4482.2,4482.1,0.718]
[1756945370252,0.73194864,4482.2,4481.6,3.13872018]
[1756945370253,0.2802,4482.1,4481.6,3.13872018]
[1756945370456,0.4022,4481.6,4481.5,0.8333]
[1756945370657,0.92964864,4481.6,4481.5,0.8352]
[1756945371252,0.92964864,4481.6,4481.5,0.6319]
[1756945371451,1.20984864,4481.6,4481.0,0.4226]
[1756945371649,1.87752666,4481.1,4481.0,0.3073]
[1756945371849,1.9270753,4481.1,4481.0,0.8352]
[1756945373152,0.73194864,4481.1,4481.0,0.8352]
[1756945373452,0.92964864,4481.1,4481.0,0.8352]
[1756945373651,1.20984864,4481.1,4481.0,0.3073]
[1756945373853,0.92964864,4481.1,4480.5,0.1172]
[1756945374044,0.2045,4480.7,4480.6,0.718]
[1756945374250,0.52744864,4480.7,4480.6,0.718]
[1756945374456,1.19861256,4480.9,4480.7,0.3073]
[1756945374656,0.73377792,4480.8,4480.7,0.718]
[1756945374959,0.93147792,4480.8,4480.7,0.718]
[1756945375149,2.13009048,4480.8,4480.7,0.718]
[1756945375351,0.4022,4479.8,4479.7,0.5147]
[1756945375554,0.6824,4479.8,4479.7,0.5147]
[1756945375745,0.52927792,4479.8,4479.2,0.4107]
[1756945375945,1.5996351,4479.9,4479.8,0.3073]
[1756945376152,0.52962299,4479.9,4479.8,0.718]
[1756945376860,0.73412299,4479.9,4479.8,0.718]
[1756945377859,0.93182299,4479.9,4479.8,0.718]
[1756945378356,1.59987056,4479.9,4479.8,0.718]
[1756945378549,2.12949355,4479.9,4479.8,0.718]
[1756945379162,0.93182299,4479.9,4479.8,0.718]
[1756945379350,0.52962299,4479.9,4479.8,0.718]
[1756945380663,1.21202299,4479.9,4479.8,0.3073]
[1756945381055,0.93182299,4479.9,4479.8,0.5147]
[1756945381264,0.93182299,4479.9,4479.8,0.718]
[1756945385663,0.52962299,4479.9,4479.8,7.77264018]
[1756945385861,1.19767056,4481.3,4479.8,7.77264018]
[1756945385862,0.6342,4481.1,4481.0,0.5147]
[1756945386062,1.16158542,4481.1,4480.5,0.1172]
[1756945386261,0.2045,4480.7,4480.6,0.718]
[1756945386465,0.73188542,4480.7,4480.6,0.718]
[1756945386854,0.52738542,4480.7,4480.6,0.718]
[1756945387059,0.52738542,4481.0,4480.6,0.718]
[1756945387258,0.52738542,4480.9,4480.8,0.4107]
[1756945387461,32.5432,4481.5,4481.4,0.2074]
[1756945387666,0.52743519,4481.5,4481.4,0.718]
[1756945388160,0.2802,4481.4,4480.5,0.1172]
[1756945388359,0.6824,4480.6,4480.0,0.1172]
[1756945388562,0.2802,4481.1,4480.5,0.5279]
[1756945388762,0.5275209,4481.0,4480.9,0.4107]
[1756945389066,0.5275209,4481.0,4480.9,0.718]
[1756945389262,0.2802,4481.9,4480.9,4.718]
[1756945389460,0.92977174,4481.8,4481.7,0.2074]
[1756945389661,0.6824,4481.2,4481.1,0.3073]
[1756945389862,1.20997174,4481.2,4481.1,0.3073]
[1756945390061,1.20997174,4481.2,4480.6,0.3073]
[1756945390268,1.20997174,4481.2,4480.6,0.718]
[1756945390269,0.2045,4480.7,4480.6,0.718]
[1756945390765,0.6824,4480.7,4480.6,0.3073]
[1756945390967,1.21018252,4480.7,4480.1,0.3073]
[1756945391162,0.2045,4480.2,4480.1,0.5147]
[1756945391360,0.2045,4480.2,4480.1,0.718]
[1756945391563,0.137,4481.0,4480.2,0.3073]
[1756945391758,0.93014181,4480.9,4480.8,0.5147]
[1756945392063,0.3942,4480.6,4480.5,0.4138]
[1756945392262,0.6741,4480.6,4480.0,0.1172]
[1756945392465,0.3942,4480.6,4480.1,0.2966]
[1756945392861,0.313,4480.5,4479.5,0.1172]
[1756945393161,0.1944,4479.7,4479.6,0.6954]
[1756945393763,0.1944,4479.7,4478.1,40.8]
[1756945393764,0.6741,4479.7,4479.1,0.2966]
[1756945394870,0.1944,4478.7,4478.6,0.4988]
[1756945395168,0.1944,4478.7,4478.6,0.6954]
[1756945396766,0.3942,4478.7,4478.6,0.4988]
[1756945396969,0.6741,4478.7,4478.1,0.2966]
[1756945397366,0.5287201,4478.6,4478.1,0.2966]
[1756945397573,0.2799,4478.7,4478.1,0.2966]
[1756945397873,0.1944,4478.2,4478.1,0.6954]
[1756945398470,0.1944,4478.2,4478.0,0.1228]
[1756945398471,0.6741,4478.2,4477.6,0.2966]
[1756945398671,0.52878183,4478.1,4477.6,0.2966]
[1756945398974,0.1944,4478.2,4478.1,0.6954]
[1756945399275,0.72318582,4478.2,4478.1,0.6954]
[1756945399573,0.92298582,4478.2,4478.1,0.6954]
[1756945399968,0.72318582,4478.2,4478.1,0.6954]
[1756945400168,1.20288582,4478.2,4478.1,0.4988]
[1756945400374,1.20288582,4478.2,4478.1,0.2966]
[1756945400570,1.20288582,4478.2,4478.1,0.4988]
[1756945400776,0.72318582,4478.2,4478.1,0.6954]
[1756945401171,0.232,4479.2,4478.1,4.6954]
[1756945401370,0.52615419,4479.1,4479.0,0.8182]
[1756945401680,0.72055419,4479.1,4479.0,0.8182]
[1756945401974,0.92035419,4479.1,4479.0,0.8182]
[1756945402171,0.52615419,4479.1,4479.0,0.8182]
[1756945402571,0.72055419,4479.1,4479.0,0.8182]
[1756945403370,0.52615419,4479.1,4479.0,0.8182]
[1756945404971,0.00334747,4479.5,4479.1,0.2966]
[1756945405180,0.00334747,4479.5,4479.4,0.6954]
[1756945407170,0.19774747,4479.5,4479.4,0.6954]
[1756945407377,0.68654747,4479.5,4479.4,0.6954]
[1756945409479,0.68654747,4479.5,4479.0,0.1228]
[1756945409480,0.51754747,4479.5,4479.0,0.1228]
[1756945409780,0.289,4479.3,4479.0,0.2966]
[1756945409979,0.6832,4479.1,4479.0,0.4988]
[1756945410673,0.6832,4478.7,4478.6,0.20554747]
[1756945411072,0.6832,4478.7,4478.6,0.50214747]
[1756945411577,0.6832,4478.7,4478.6,0.00334747]
[1756945412175,0.6832,4478.7,4478.6,0.50214747]
[1756945412375,0.6832,4478.7,4478.6,0.20554747]
[1756945412780,0.6832,4478.7,4478.6,0.50214747]
[1756945412981,0.6832,4478.7,4478.6,0.00334747]
[1756945413477,0.289,4479.2,4478.7,0.2966]
[1756945413675,0.4834,4479.2,4479.1,0.6954]
[1756945413875,0.1944,4479.2,4479.1,0.6954]
[1756945414083,0.19774747,4479.5,4479.4,0.3988]
[1756945414376,0.6832,4479.3,4478.7,0.2966]
[1756945416579,0.6832,4479.3,4479.2,0.6954]
[1756945416982,0.71948082,4479.3,4479.2,0.6954]
[1756945417284,0.00334747,4479.5,4479.4,0.3988]
[1756945417579,0.19774747,4479.5,4479.4,0.6954]
[1756945417783,0.72291403,4479.5,4479.4,0.6954]
[1756945418376,1.21171403,4479.5,4479.4,0.6954]
[1756945418576,1.21171403,4479.5,4479.4,0.2022]
[1756945419179,0.52851403,4479.5,4479.4,0.6954]
[1756945420585,1.33252117,4479.5,4478.7,0.2966]
[1756945420787,0.6832,4478.8,4478.7,0.4988]
[1756945420985,1.2091737,4478.8,4478.7,0.4988]
[1756945421378,1.2091737,4478.8,4478.6,0.00334747]
[1756945421576,0.6832,4478.8,4478.7,0.6954]
[1756945421784,1.20938578,4478.8,4478.7,0.6954]
[1756945423288,1.20938578,4478.8,4478.7,0.3988]
[1756945423485,1.20938578,4478.8,4478.7,0.2022]
[1756945423883,0.92038578,4478.8,4478.6,0.00334747]
[1756945424088,1.22448578,4478.7,4478.6,0.00334747]
[1756945425591,1.22494273,4478.7,4478.6,0.49964747]
[1756945426003,1.22494273,4478.7,4478.6,0.68794747]
[1756945427099,1.22494273,4478.7,4478.6,0.20604747]
[1756945427895,1.22494273,4478.7,4478.6,0.00334747]
[1756945428098,1.22494273,4478.7,4477.4,0.2936]
[1756945428099,5.44822273,4478.7,4477.4,0.2936]
[1756945428295,0.5069,4477.5,4477.4,0.6846]
[1756945428592,0.6983,4477.5,4477.4,0.6846]
[1756945429494,0.3865,4477.5,4477.4,0.6846]
[1756945430201,0.1951,4477.5,4477.4,0.6846]
[1756945431492,0.6983,4477.5,4477.4,0.391]
[1756945431698,1.22472203,4477.5,4477.4,0.391]
[1756945432015,1.03212203,4477.5,4476.7,3.22753811]
[1756945432206,1.22472203,4477.4,4477.3,0.2027]
[1756945432607,1.22472203,4477.4,4476.8,0.2936]
[1756945432798,0.1951,4476.9,4476.8,0.6846]
[1756945433398,0.6983,4476.9,4476.8,0.6846]
[1756945433899,0.6983,4476.9,4476.8,0.2027]
[1756945434905,0.6983,4476.9,4476.5,0.2936]
[1756945435203,0.1192,4477.0,4476.0,0.351]
[1756945435204,0.1951,4476.1,4476.0,0.8036]
[1756945435506,0.5069,4476.1,4476.0,0.8036]
[1756945435898,0.6983,4476.1,4476.0,0.2027]
[1756945436903,0.1192,4476.0,4475.6,0.2936]
[1756945437109,0.6983,4475.7,4475.6,0.4963]
[1756945437310,0.3118,4476.4,4475.7,0.2936]
[1756945437510,0.1951,4476.4,4476.3,0.6846]
[1756945438008,0.6983,4476.4,4476.3,0.6846]
[1756945438204,0.6983,4476.4,4476.3,0.391]
[1756945439405,0.6983,4476.4,4476.3,0.6846]
[1756945439913,0.3865,4476.0,4475.9,0.4963]
[1756945440209,0.1951,4476.0,4475.9,0.6846]
[1756945440607,0.1192,4476.5,4475.9,0.391]
[1756945440807,0.1951,4476.9,4476.8,0.6846]
[1756945441012,0.00334747,4477.1,4477.0,0.119]
[1756945441205,0.19844747,4477.1,4477.0,0.8036]
[1756945441704,0.70164747,4477.1,4477.0,0.6846]
[1756945443413,0.19844747,4477.1,4477.0,0.8036]
[1756945444107,0.00334747,4477.1,4477.0,0.8036]
[1756945444513,0.19844747,4477.1,4477.0,0.8036]
[1756945445309,0.00334747,4477.1,4477.0,0.8036]
[1756945446108,0.19844747,4477.1,4477.0,0.8036]
[1756945446313,0.70164747,4477.1,4477.0,0.8036]
[1756945446512,0.38984747,4477.1,4477.0,0.8036]
[1756945446713,0.19844747,4477.1,4477.0,0.8036]
[1756945448509,0.70164747,4477.1,4476.6,0.2936]
[1756945448716,0.3118,4476.9,4476.1,0.2936]
[1756945448911,0.3118,4476.9,4476.2,0.2936]
[1756945449216,0.6983,4476.3,4476.2,0.6846]
[1756945450312,0.70164747,4477.1,4477.0,0.391]
[1756945450516,0.70164747,4477.1,4477.0,0.2027]
[1756945450914,0.70164747,4477.1,4477.0,0.4963]
[1756945452213,0.70164747,4477.1,4477.0,0.6846]
[1756945453216,0.70164747,4477.1,4477.0,0.2027]
[1756945453415,0.70164747,4477.1,4477.0,0.7177]
[1756945454219,0.00334747,4477.1,4477.0,0.7177]
[1756945454408,0.00334747,4477.1,4477.0,0.8367]
[1756945454607,0.70904747,4477.1,4477.0,0.7177]
[1756945456418,0.70904747,4477.1,4477.0,0.2027]
[1756945456617,0.1225,4477.0,4476.7,2.83034713]
[1756945456818,0.7057,4476.8,4476.7,3.23184713]
[1756945457221,0.7057,4476.8,4476.7,3.53834713]
[1756945457417,0.1225,4476.5,4475.0,33.86492783]
[1756945457619,0.2021,4475.7,4475.6,0.708]
[1756945458017,0.3074,4476.0,4475.7,0.3065]
[1756945458218,0.7057,4476.0,4475.9,0.708]
[1756945458418,0.3074,4476.9,4476.1,0.3065]
[1756945458617,0.2021,4476.4,4476.3,3.53834713]
[1756945459014,0.72877611,4476.4,4476.3,3.53834713]
[1756945459515,1.23237611,4476.4,4476.3,0.708]
[1756945461322,0.7057,4475.8,4475.2,0.231]
[1756945461615,0.2021,4475.3,4475.2,0.4015]
[1756945461816,0.7057,4475.3,4475.2,0.4015]
[1756945462214,0.7057,4475.3,4475.2,0.708]
[1756945464512,0.3983,4475.3,4475.2,0.708]
[1756945464716,0.1225,4476.0,4475.2,0.4015]
[1756945464913,0.2021,4475.3,4475.2,0.4015]
[1756945465317,0.2021,4475.3,4475.2,0.708]
[1756945465520,0.7057,4475.3,4475.2,0.708]
[1756945465726,0.7057,4475.3,4475.2,0.193]
[1756945466124,1.23440737,4475.3,4475.2,0.193]
[1756945466428,0.52870737,4475.3,4475.2,0.708]
[1756945466818,0.3074,4475.8,4475.3,0.3065]
[1756945467019,0.73058301,4475.7,4475.6,0.708]
[1756945467219,1.23418301,4475.7,4475.6,0.708]
[1756945470527,0.7057,4475.7,4475.6,0.708]
[1756945475634,0.7057,4475.7,4475.6,1.51686308]
[1756945475830,0.7057,4475.7,4475.0,0.4255]
[1756945476132,0.7057,4475.7,4474.5,0.119]
[1756945476133,0.7057,4475.2,4475.1,1.51686308]
[1756945476325,0.2021,4475.2,4475.1,1.51686308]
[1756945478028,0.7057,4475.2,4475.1,1.51686308]
[1756945478434,0.3983,4475.2,4475.1,1.51686308]
[1756945478731,0.2021,4475.2,4475.1,1.51686308]
[1756945479735,0.3074,4475.6,4475.1,1.51686308]
[1756945479928,0.83562083,4475.5,4475.2,0.3065]
[1756945480126,0.5095,4475.5,4475.4,0.708]
[1756945480322,1.03772083,4475.5,4475.4,0.708]
[1756945480529,1.23392083,4475.5,4475.4,0.708]
[1756945482538,1.35032083,4475.5,4475.4,0.193]
[1756945482937,1.35032083,4475.5,4475.1,0.285]
[1756945483134,0.3883,4475.2,4475.1,0.4836]
[1756945483327,0.6954,4475.2,4475.1,0.4836]
[1756945484228,1.22381624,4475.2,4474.6,0.285]
[1756945484428,1.22381624,4475.2,4473.7,0.4836]
[1756945484429,0.1974,4473.8,4473.7,0.4836]
[1756945484634,0.6954,4473.8,4473.7,1.49316308]
[1756945484830,0.6954,4473.8,4473.7,0.1986]
[1756945485136,0.6954,4473.8,4473.7,0.4836]
[1756945486333,0.6954,4473.8,4473.7,0.6843]
[1756945486937,0.6954,4473.8,4473.7,0.1986]
[1756945487138,1.22387297,4473.8,4473.6,0.80886308]
[1756945487338,0.6954,4473.7,4473.6,1.29246308]
[1756945487540,0.6954,4473.7,4473.6,1.49316308]
[1756945488231,0.3883,4473.7,4473.6,1.49316308]
[1756945488436,0.3071,4474.0,4473.6,1.49316308]
[1756945488739,0.52820245,4473.9,4473.5,0.285]
[1756945489043,0.6954,4473.6,4473.5,1.49316308]
[1756945489238,0.1974,4473.6,4473.5,1.61326308]
[1756945489641,0.5045,4473.6,4473.5,1.61326308]
[1756945489946,0.00335132,4474.2,4473.5,1.32826308]
[1756945490144,0.498,4473.9,4473.8,1.49316308]
[1756945490439,0.6954,4473.9,4473.8,1.49316308]
[1756945491434,0.6954,4473.9,4473.8,0.6843]
[1756945495249,0.1974,4473.9,4473.8,0.6843]
[1756945495452,0.6954,4473.9,4473.8,0.6843]
[1756945497451,0.6954,4473.9,4473.1,0.285]
[1756945497655,0.3883,4473.6,4473.5,0.6843]
[1756945497861,0.6954,4473.6,4473.5,0.6843]
[1756945499362,0.6954,4473.6,4473.5,0.1986]
[1756945499659,0.6954,4473.2,4473.1,1.20816308]
[1756945500261,0.6954,4473.2,4473.1,0.6843]
[1756945500561,0.6954,4473.2,4473.1,0.1986]
[1756945500956,0.3883,4472.9,4472.8,0.16991404]
[1756945501160,0.6954,4472.9,4472.8,0.16991404]